fUST/lending_fUST_20240722
["ID","MTS","AMOUNT","RATE_DAILY","PERIOD"]
[332874067,1721610648328,-500.0,0.00013972,2]
[332874068,1721610648338,-566.42,0.00013972,2]
[332874069,1721610648347,-158.27,0.00013972,2]
[332874070,1721610648356,-500.0,0.00013972,2]
[332874071,1721610648366,-500.0,0.00013972,2]
[332874072,1721610648376,-500.0,0.00013972,2]
[332874073,1721610648386,-500.0,0.00013972,2]
[332874074,1721610648396,-500.0,0.00013972,2]
[332874075,1721610648406,-332.77,0.00013972,2]
[332874076,1721610648415,-500.0,0.00013972,2]
[332874077,1721610648426,-621.66,0.00013972,2]
[332874078,1721610648435,-500.0,0.00013972,2]
[332874079,1721610648445,-500.0,0.00013972,2]
[332874080,1721610648454,-500.0,0.00013972,2]
[332874081,1721610648464,-500.0,0.00013972,2]
[332874082,1721610648474,-500.0,0.00013972,2]
[332874083,1721610648484,-500.0,0.00013972,2]
[332874084,1721610648495,-500.0,0.00013972,2]
[332874085,1721610648507,-500.0,0.00013972,2]
[332874086,1721610648517,-500.0,0.00013972,2]
[332874087,1721610648527,-552.42,0.00013972,2]
[332874088,1721610648538,-500.0,0.00013972,2]
[332874089,1721610648548,-500.0,0.00013972,2]
[332874090,1721610648558,-500.0,0.00013972,2]
[332874091,1721610648567,-633.87,0.00013972,2]
[332874092,1721610648578,-500.0,0.00013972,2]
[332874093,1721610648588,-500.0,0.00013972,2]
[332874094,1721610648597,-500.0,0.00013972,2]
[332874095,1721610648607,-500.0,0.00013972,2]
[332874096,1721610648616,-500.0,0.00013972,2]
[332874097,1721610648626,-168.6,0.00013972,2]
[332874098,1721610648636,-500.0,0.00013972,2]
[332874099,1721610648645,-541.72,0.00013972,2]
[332874100,1721610648655,-344.35,0.00013972,2]
[332874101,1721610648664,-476.27,0.00013972,2]
[332874102,1721610648674,-500.0,0.00013972,2]
[332874103,1721610648683,-500.0,0.00013972,2]
[332874104,1721610648693,-500.0,0.00013972,2]
[332874105,1721610648703,-500.0,0.00013972,2]
[332874106,1721610648712,-500.0,0.00013972,2]
[332874107,1721610648722,-332.98,0.00013972,2]
[332874108,1721610648732,-518.01,0.00013972,2]
[332874109,1721610648742,-500.0,0.00013972,2]
[332874110,1721610648752,-500.0,0.00013972,2]
[332874111,1721610648763,-500.0,0.00013972,2]
[332874112,1721610648773,-500.0,0.00013972,2]
[332874113,1721610648782,-500.0,0.00013972,2]
[332874114,1721610648792,-500.0,0.00013972,2]
[332874115,1721610648803,-578.09,0.00013972,2]
[332874116,1721610648813,-500.0,0.00013972,2]
[332874117,1721610648823,-359.08,0.00013972,2]
[332874118,1721610648833,-500.0,0.00013972,2]
[332874119,1721610648843,-500.0,0.00013972,2]
[332874120,1721610648853,-500.0,0.00013972,2]
[332874121,1721610648863,-245.62621696,0.00013972,2]
[332874122,1721610648874,-500.0,0.00013972,2]
[332874123,1721610648884,-500.0,0.00013972,2]
[332874125,1721610648893,-500.0,0.00013972,2]
[332874126,1721610648903,-500.0,0.00013972,2]
[332874128,1721610648914,-367.76,0.00013972,2]
[332874130,1721610648924,-500.0,0.00013972,2]
[332874131,1721610648935,-500.0,0.00013972,2]
[332874133,1721610648944,-500.0,0.00013972,2]
[332874135,1721610648954,-500.0,0.00013972,2]
[332874137,1721610648964,-366.61,0.00013972,2]
[332874138,1721610648974,-500.0,0.00013972,2]
[332874140,1721610648984,-500.0,0.00013972,2]
[332874141,1721610648994,-376.04,0.00013972,2]
[332874143,1721610649004,-377.65,0.00013972,2]
[332874145,1721610649015,-500.0,0.00013972,2]
[332874147,1721610649025,-502.79063833,0.00013972,2]
[332874148,1721610649035,-500.0,0.00013972,2]
[332874150,1721610649045,-504.54755025,0.00013972,2]
[332874151,1721610649055,-500.0,0.00013972,2]
[332874153,1721610649065,-500.0,0.00013972,2]
[332874154,1721610649076,-500.0,0.00013972,2]
[332874155,1721610649087,-500.0,0.00013972,2]
[332874156,1721610649097,-505.84,0.00013972,2]
[332874157,1721610649107,-500.0,0.00013972,2]
[332874158,1721610649116,-500.0,0.00013972,2]
[332874159,1721610649126,-315.62242505,0.00013972,2]
[332874160,1721610649136,-334.66,0.00013972,2]
[332874161,1721610649146,-500.0,0.00013972,2]
[332874162,1721610649157,-500.0,0.00013972,2]
[332874163,1721610649168,-500.0,0.00013972,2]
[332874164,1721610649178,-500.0,0.00013972,2]
[332874165,1721610649188,-632.04,0.00013972,2]
[332874166,1721610649198,-500.0,0.00013972,2]
[332874167,1721610649208,-500.0,0.00013972,2]
[332874168,1721610649219,-338.14,0.00013972,2]
[332874169,1721610649229,-500.0,0.00013972,2]
[332874170,1721610649238,-500.0,0.00013972,2]
[332874171,1721610649249,-500.0,0.00013972,2]
[332874172,1721610649259,-500.0,0.00013972,2]
[332874173,1721610649268,-535.0,0.00013972,2]
[332874174,1721610649278,-500.0,0.00013972,2]
[332874175,1721610649288,-500.0,0.00013972,2]
[332874176,1721610649297,-602.85,0.00013972,2]
[332874177,1721610649307,-316.07,0.00013972,2]
[332874178,1721610649319,-547.7,0.00013972,2]
[332874179,1721610649329,-500.0,0.00013972,2]
[332874180,1721610649338,-500.0,0.00013972,2]
[332874181,1721610649348,-569.31,0.00013972,2]
[332874182,1721610649358,-554.09,0.00013972,2]
[332874183,1721610649369,-500.0,0.00013972,2]
[332874184,1721610649379,-500.0,0.00013972,2]
[332874185,1721610649389,-500.0,0.00013972,2]
[332874186,1721610649399,-318.28507586,0.00013972,2]
[332874187,1721610649410,-500.0,0.00013972,2]
[332874188,1721610649421,-500.0,0.00013972,2]
[332874189,1721610649432,-500.0,0.00013972,2]
[332874190,1721610649442,-500.0,0.00013972,2]
[332874191,1721610649452,-500.0,0.00013972,2]
[332874192,1721610649461,-500.0,0.00013972,2]
[332874193,1721610649471,-526.23,0.00013972,2]
[332874194,1721610649481,-500.0,0.00013972,2]
[332874195,1721610649491,-500.0,0.00013972,2]
[332874196,1721610649504,-277.0,0.00013972,2]
[332874197,1721610649514,-500.0,0.00013972,2]
[332874198,1721610649524,-500.0,0.00013972,2]
[332874199,1721610649533,-509.44039861,0.00013972,2]
[332874200,1721610649543,-500.0,0.00013972,2]
[332874201,1721610649554,-500.0,0.00013972,2]
[332874202,1721610649565,-500.0,0.00013972,2]
[332874203,1721610649576,-500.0,0.00013972,2]
[332874204,1721610649588,-500.0,0.00013972,2]
[332874205,1721610649598,-500.0,0.00013972,2]
[332874206,1721610649609,-500.0,0.00013972,2]
[332874207,1721610649619,-330.35986295,0.00013972,2]
[332874208,1721610649629,-518.63,0.00013972,2]
[332874209,1721610649639,-500.0,0.00013972,2]
[332874210,1721610649650,-500.0,0.00013972,2]
[332874211,1721610649660,-500.0,0.00013972,2]
[332874212,1721610649670,-500.0,0.00013972,2]
[332874213,1721610649681,-261.81,0.00013972,2]
[332874214,1721610649691,-500.0,0.00013972,2]
[332874215,1721610649701,-500.0,0.00013972,2]
[332874216,1721610649711,-500.0,0.00013972,2]
[332874217,1721610649721,-500.0,0.00013972,2]
[332874218,1721610649731,-500.0,0.00013972,2]
[332874219,1721610649741,-500.0,0.00013972,2]
[332874220,1721610649751,-500.0,0.00013972,2]
[332874221,1721610649762,-500.0,0.00013972,2]
[332874222,1721610649771,-258.39,0.00013972,2]
[332874223,1721610649781,-606.64278413,0.00013972,2]
[332874224,1721610649791,-500.0,0.00013972,2]
[332874225,1721610649801,-500.0,0.00013972,2]
[332874226,1721610649811,-500.0,0.00013972,2]
[332874227,1721610649820,-500.0,0.00013972,2]
[332874228,1721610649830,-193.0,0.00013972,2]
[332874229,1721610649839,-500.0,0.00013972,2]
[332874230,1721610649849,-500.0,0.00013972,2]
[332874231,1721610649858,-558.28,0.00013972,2]
[332874232,1721610649868,-500.0,0.00013972,2]
[332874233,1721610649879,-500.0,0.00013972,2]
[332874234,1721610649889,-500.0,0.00013972,2]
[332874235,1721610649899,-500.0,0.00013972,2]
[332874236,1721610649908,-500.0,0.00013972,2]
[332874237,1721610650094,-500.0,0.00013972,2]
[332874238,1721610650104,-500.0,0.00013972,2]
[332874239,1721610650114,-500.0,0.00013972,2]
[332874240,1721610650123,-275.66,0.00013972,2]
[332874241,1721610650133,-500.0,0.00013972,2]
[332874242,1721610650142,-500.0,0.00013972,2]
[332874243,1721610650152,-500.0,0.00013972,2]
[332874244,1721610650162,-372.22373405,0.00013972,2]
[332874245,1721610650171,-500.0,0.00013972,2]
[332874246,1721610650183,-500.0,0.00013972,2]
[332874247,1721610650192,-500.0,0.00013972,2]
[332874248,1721610650202,-150.65,0.00013972,2]
[332874249,1721610650211,-500.0,0.00013972,2]
[332874250,1721610650221,-625.58,0.00013972,2]
[332874251,1721610650231,-500.0,0.00013972,2]
[332874252,1721610650241,-500.0,0.00013972,2]
[332874253,1721610650250,-557.52,0.00013972,2]
[332874254,1721610650260,-500.0,0.00013972,2]
[332874255,1721610650269,-500.0,0.00013972,2]
[332874256,1721610650278,-500.0,0.00013972,2]
[332874257,1721610650288,-500.0,0.00013972,2]
[332874258,1721610650298,-500.0,0.00013972,2]
[332874259,1721610650307,-500.0,0.00013972,2]
[332874260,1721610650317,-500.0,0.00013972,2]
[332874261,1721610650327,-500.0,0.00013972,2]
[332874262,1721610650336,-500.0,0.00013972,2]
[332874263,1721610650345,-578.09,0.00013972,2]
[332874264,1721610650354,-500.0,0.00013972,2]
[332874265,1721610650363,-500.0,0.00013972,2]
[332874266,1721610650373,-500.0,0.00013972,2]
[332874267,1721610650382,-500.0,0.00013972,2]
[332874268,1721610650392,-500.0,0.00013972,2]
[332874269,1721610650401,-500.0,0.00013972,2]
[332874270,1721610650410,-151.0,0.00013972,2]
[332874271,1721610650420,-500.0,0.00013972,2]
[332874272,1721610650430,-500.0,0.00013972,2]
[332874273,1721610650439,-151.0,0.00013972,2]
[332874274,1721610650449,-500.0,0.00013972,2]
[332874275,1721610650458,-500.0,0.00013972,2]
[332874276,1721610650468,-500.0,0.00013972,2]
[332874277,1721610650477,-560.87,0.00013972,2]
[332874278,1721610650486,-500.0,0.00013972,2]
[332874279,1721610650496,-592.29167057,0.00013972,2]
[332874280,1721610650510,-500.0,0.00013972,2]
[332874281,1721610650520,-500.0,0.00013972,2]
[332874282,1721610650529,-500.0,0.00013972,2]
[332874283,1721610650539,-500.0,0.00013972,2]
[332874284,1721610650548,-151.0,0.00013972,2]
[332874285,1721610650558,-500.0,0.00013972,2]
[332874286,1721610650567,-500.0,0.00013972,2]
[332874287,1721610650578,-500.0,0.00013972,2]
[332874288,1721610650589,-271.46,0.00013972,2]
[332874289,1721610650598,-151.0,0.00013972,2]
[332874290,1721610650607,-500.0,0.00013972,2]
[332874291,1721610650617,-150.112233,0.00014,4]
[332874292,1721610650626,-150.112233,0.00014,4]
[332874293,1721610650636,-930.77,0.00014048,2]
[332874294,1721610650645,-930.77,0.00014048,2]
[332874295,1721610650654,-930.77,0.00014048,2]
[332874296,1721610650663,-624.12,0.00014048,2]
[332874297,1721610650673,-624.12,0.00014048,2]
[332874298,1721610650685,-624.12,0.00014048,2]
[332874299,1721610650695,-500.0,0.00014059,2]
[332874300,1721610650704,-500.0,0.00014059,2]
[332874301,1721610650714,-430.2,0.00014059,2]
[332874302,1721610650723,-500.0,0.00014059,2]
[332874303,1721610650732,-500.0,0.00014059,2]
[332874304,1721610650742,-217.51,0.00014059,2]
[332874305,1721610650751,-500.0,0.00014059,2]
[332874306,1721610650760,-500.0,0.00014059,2]
[332874307,1721610650770,-500.0,0.00014059,2]
[332874308,1721610650780,-500.0,0.00014059,2]
[332874309,1721610650789,-620.43759471,0.00014059,2]
[332874310,1721610650799,-500.0,0.00014059,2]
[332874311,1721610650809,-500.0,0.00014059,2]
[332874312,1721610650818,-500.0,0.00014059,2]
[332874313,1721610650828,-539.84,0.00014059,2]
[332874314,1721610650838,-500.0,0.00014059,2]
[332874315,1721610650848,-167.87,0.00014059,2]
[332874316,1721610650857,-185.82,0.00014059,2]
[332874317,1721610650867,-500.0,0.00014059,2]
[332874318,1721610650877,-400.92,0.00014059,2]
[332874319,1721610650886,-293.8425286,0.00014092,2]
[332874320,1721610650896,-493.0917278,0.00014092,2]
[332874321,1721610650905,-293.8425286,0.00014092,2]
[332874322,1721610650915,-275.7504188,0.00014092,2]
[332874323,1721610650925,-624.12,0.00014235,2]
[332874324,1721610650935,-624.12,0.00014235,2]
[332874325,1721610650945,-930.77,0.00014245,2]
[332874326,1721610650955,-930.77,0.00014245,2]
[332874327,1721610650965,-930.77,0.00014245,2]
[332874328,1721610650974,-930.77,0.00014245,2]
[332874329,1721610650983,-930.84,0.00014245,2]
[332874330,1721610650993,-500.0,0.00014246,2]
[332874331,1721610651002,-1465.2,0.00014246,2]
[332874332,1721610651012,-527.23,0.00014246,2]
[332874333,1721610651022,-500.0,0.00014246,2]
[332874334,1721610651032,-500.0,0.00014246,2]
[332874335,1721610651043,-500.0,0.00014246,2]
[332874336,1721610651053,-500.0,0.00014246,2]
[332874337,1721610651063,-1178.55,0.00014246,2]
[332874338,1721610651074,-500.0,0.00014246,2]
[332874339,1721610651084,-1672.06,0.00014246,2]
[332874340,1721610651094,-500.0,0.00014246,2]
[332874341,1721610651104,-500.0,0.00014246,2]
[332874342,1721610651115,-164.77,0.00014246,2]
[332874343,1721610651125,-505.89,0.00014246,2]
[332874344,1721610651134,-500.0,0.00014246,2]
[332874345,1721610651145,-500.0,0.00014246,2]
[332874346,1721610651154,-500.0,0.00014246,2]
[332874347,1721610651164,-500.0,0.00014246,2]
[332874348,1721610651174,-333.01,0.00014246,2]
[332874349,1721610651185,-204.73,0.00014246,2]
[332874350,1721610651195,-500.0,0.00014246,2]
[332874351,1721610651204,-500.0,0.00014246,2]
[332874352,1721610651213,-624.15,0.00014246,2]
[332874353,1721610651222,-500.0,0.00014246,2]
[332874354,1721610651231,-500.0,0.00014246,2]
[332874355,1721610651240,-500.0,0.00014246,2]
[332874356,1721610651250,-445.42,0.00014246,2]
[332874357,1721610651259,-500.0,0.00014246,2]
[332874358,1721610651268,-500.0,0.00014246,2]
[332874359,1721610651277,-176.08,0.00014246,2]
[332874360,1721610651287,-500.0,0.00014246,2]
[332874361,1721610651296,-517.82,0.00014246,2]
[332874362,1721610651305,-500.0,0.00014246,2]
[332874363,1721610651315,-500.0,0.00014246,2]
[332874364,1721610651324,-234.04,0.00014246,2]
[332874365,1721610651333,-500.0,0.00014246,2]
[332874366,1721610651343,-500.0,0.00014246,2]
[332874367,1721610651353,-500.0,0.00014246,2]
[332874368,1721610651362,-286.80377951,0.00014246,2]
[332874369,1721610651372,-500.0,0.00014246,2]
[332874370,1721610651382,-297.91,0.00014246,2]
[332874371,1721610651392,-500.0,0.00014246,2]
[332874372,1721610651403,-500.0,0.00014246,2]
[332874373,1721610651412,-203.39,0.00014246,2]
[332874374,1721610651422,-557.52,0.00014246,2]
[332874375,1721610651433,-500.0,0.00014246,2]
[332874376,1721610651442,-500.0,0.00014246,2]
[332874377,1721610651451,-175.72,0.00014246,2]
[332874378,1721610651461,-451.93,0.00014246,2]
[332874379,1721610651470,-500.0,0.00014246,2]
[332874380,1721610651479,-500.0,0.00014246,2]
[332874381,1721610651488,-500.0,0.00014246,2]
[332874382,1721610651504,-500.0,0.00014246,2]
[332874383,1721610651513,-169.97,0.00014246,2]
[332874384,1721610651522,-165.28,0.00014246,2]
[332874385,1721610651532,-180.76427088,0.00014246,2]
[332874386,1721610651542,-500.0,0.00014246,2]
[332874387,1721610651551,-500.0,0.00014246,2]
[332874388,1721610651561,-421.28,0.00014246,2]
[332874389,1721610651570,-500.0,0.00014246,2]
[332874390,1721610651584,-308.91,0.00014246,2]
[332874391,1721610651594,-500.0,0.00014246,2]
[332874392,1721610651603,-500.0,0.00014246,2]
[332874393,1721610651613,-500.0,0.00014246,2]
[332874394,1721610651622,-500.0,0.00014246,2]
[332874395,1721610651632,-235.43,0.00014246,2]
[332874396,1721610651641,-387.15110902,0.00014246,2]
[332874397,1721610651651,-500.0,0.00014246,2]
[332874398,1721610651661,-500.0,0.00014246,2]
[332874399,1721610651670,-430.44968673,0.00014246,2]
[332874400,1721610651681,-500.0,0.00014246,2]
[332874401,1721610651691,-428.76,0.00014246,2]
[332874402,1721610651700,-500.0,0.00014246,2]
[332874403,1721610651710,-500.0,0.00014246,2]
[332874404,1721610651719,-279.5,0.00014246,2]
[332874405,1721610651728,-500.0,0.00014246,2]
[332874406,1721610651737,-277.72,0.00014246,2]
[332874407,1721610651747,-168.28,0.00014246,2]
[332874408,1721610651756,-500.0,0.00014246,2]
[332874409,1721610651765,-500.0,0.00014246,2]
[332874410,1721610651775,-510.33,0.00014246,2]
[332874411,1721610651784,-560.80340767,0.00014246,2]
[332874412,1721610651793,-500.0,0.00014246,2]
[332874413,1721610651802,-500.0,0.00014246,2]
[332874414,1721610651811,-500.0,0.00014246,2]
[332874415,1721610651820,-500.0,0.00014246,2]
[332874416,1721610651830,-500.0,0.00014246,2]
[332874417,1721610651839,-500.0,0.00014246,2]
[332874418,1721610651848,-294.71,0.00014246,2]
[332874419,1721610651858,-269.73265992,0.00014246,2]
[332874421,1721611043344,177.59,0.00024,60]
[332874423,1721611161340,198.57,0.00024,60]
[332874495,1721611838967,-154.76012181,9.999e-05,2]
[332874496,1721611838976,-154.76012181,9.999e-05,2]
[332874497,1721611838986,-404.26765741,9.999e-05,2]
[332874498,1721611838995,-208.52011681,9.999e-05,2]
[332874499,1721611839005,-196.23272376,9.999e-05,2]
[332874500,1721611839015,-600.13398143,9.999e-05,2]
[332874501,1721611839025,-533.28027744,9.999e-05,2]
[332874502,1721611839034,-188.02682589,9.999e-05,2]
[332874503,1721611839046,-726.64238482,9.999e-05,2]
[332874504,1721611839057,-1000.74887682,9.999e-05,2]
[332874505,1721611839067,-297.42250245,9.999e-05,2]
[332874506,1721611839078,-482.16519466,9.999e-05,2]
[332874507,1721611839091,-154.76012181,9.999e-05,2]
[332874508,1721611839101,-319.34367752,9.999e-05,2]
[332874509,1721611839111,-154.76012181,9.999e-05,2]
[332874510,1721611839123,-403.25052629,9.999e-05,2]
[332874511,1721611839132,-952.21687008,9.999e-05,2]
[332874512,1721611839142,-550.24607667,9.999e-05,2]
[332874513,1721611839152,-887.31675178,9.999e-05,2]
[332874514,1721611839162,-531.21907352,9.999e-05,2]
[332874515,1721611839174,-778.7273512,9.999e-05,2]
[332874516,1721611839187,-413.45280147,9.999e-05,2]
[332874517,1721611839196,-222.75331428,9.999e-05,2]
[332874518,1721611839206,-154.79103211,9.999e-05,2]
[332874519,1721611839216,-180.26214213,9.999e-05,2]
[332874520,1721611839226,-341.63558766,9.999e-05,2]
[332874521,1721611839239,-154.76012181,9.999e-05,2]
[332874522,1721611839248,-518.96291688,9.999e-05,2]
[332874523,1721611839257,-156.62960029,9.999e-05,2]
[332874524,1721611839267,-154.76012181,9.999e-05,2]
[332874525,1721611839277,-154.79103211,9.999e-05,2]
[332874526,1721611839289,-159.9761619,9.999e-05,2]
[332874527,1721611839299,-156.54596423,9.999e-05,2]
[332874528,1721611839308,-154.77557542,0.0001,2]
[332874529,1721611839318,-287.42676554,0.0001,2]
[332874530,1721611839328,-24900.0,0.00012358,2]
[332874531,1721611839337,-2000.0,0.00013588,2]
[332874532,1721611839347,-1151.68356999,0.00013598,2]
[332874533,1721611839357,-3388.58765053,0.00013672,2]
[332874534,1721611839368,-90466.1466632,0.00013676,2]
[332874535,1721611839379,-87513.38829983,0.00013686,2]
[332874536,1721611839389,-340898.21937582,0.00013688,2]
[332874537,1721611839402,-20966.36727718,0.00013688,2]
[332874538,1721611839411,-500.0,0.00013698,2]
[332874539,1721611839421,-500.0,0.00013698,2]
[332874540,1721611839433,-500.0,0.00013698,2]
[332874541,1721611839444,-500.0,0.00013698,2]
[332874542,1721611839453,-500.0,0.00013698,2]
[332874543,1721611839462,-500.0,0.00013698,2]
[332874544,1721611839472,-733.45,0.00013698,2]
[332874545,1721611839482,-500.0,0.00013698,2]
[332874546,1721611839491,-500.0,0.00013698,2]
[332874547,1721611839501,-500.0,0.00013698,2]
[332874548,1721611839511,-500.0,0.00013698,2]
[332874549,1721611839520,-500.0,0.00013698,2]
[332874550,1721611839529,-615.05,0.00013698,2]
[332874551,1721611839538,-500.0,0.00013698,2]
[332874552,1721611839547,-500.0,0.00013698,2]
[332874553,1721611839557,-536.78,0.00013698,2]
[332874554,1721611839566,-251.95448152,0.00013698,2]
[332874555,1721611839575,-368.26,0.00013698,2]
[332874556,1721611839584,-270.84,0.00013698,2]
[332874557,1721611839593,-500.0,0.00013698,2]
[332874558,1721611839602,-591.38,0.00013698,2]
[332874559,1721611839611,-500.0,0.00013698,2]
[332874560,1721611839620,-500.0,0.00013698,2]
[332874561,1721611839630,-501.06330563,0.00013698,2]
[332874562,1721611839639,-500.0,0.00013698,2]
[332874563,1721611839649,-500.0,0.00013698,2]
[332874564,1721611839659,-500.0,0.00013698,2]
[332874565,1721611839668,-500.0,0.00013698,2]
[332874566,1721611839679,-500.0,0.00013698,2]
[332874567,1721611839688,-500.0,0.00013698,2]
[332874568,1721611839697,-500.0,0.00013698,2]
[332874569,1721611839706,-500.0,0.00013698,2]
[332874570,1721611839715,-500.0,0.00013698,2]
[332874571,1721611839724,-500.0,0.00013698,2]
[332874572,1721611839734,-500.0,0.00013698,2]
[332874573,1721611839743,-500.0,0.00013698,2]
[332874574,1721611839752,-500.0,0.00013698,2]
[332874575,1721611839762,-500.0,0.00013698,2]
[332874576,1721611839771,-500.0,0.00013698,2]
[332874577,1721611839781,-592.04177035,0.00013698,2]
[332874578,1721611839790,-500.0,0.00013698,2]
[332874579,1721611839799,-500.0,0.00013698,2]
[332874580,1721611839808,-500.0,0.00013698,2]
[332874581,1721611839817,-500.0,0.00013698,2]
[332874582,1721611839826,-500.0,0.00013698,2]
[332874583,1721611839835,-500.0,0.00013698,2]
[332874584,1721611839844,-642.9,0.00013698,2]
[332874585,1721611839853,-500.0,0.00013698,2]
[332874586,1721611839863,-500.0,0.00013698,2]
[332874587,1721611839873,-500.0,0.00013698,2]
[332874588,1721611839884,-500.0,0.00013698,2]
[332874589,1721611839893,-500.0,0.00013698,2]
[332874590,1721611839903,-500.0,0.00013698,2]
[332874591,1721611839912,-500.0,0.00013698,2]
[332874592,1721611839922,-500.0,0.00013698,2]
[332874593,1721611839933,-500.0,0.00013698,2]
[332874594,1721611839942,-301.2515248,0.00013698,2]
[332874595,1721611839957,-500.0,0.00013698,2]
[332874596,1721611839967,-500.0,0.00013698,2]
[332874597,1721611839976,-500.0,0.00013698,2]
[332874598,1721611839986,-500.0,0.00013698,2]
[332874599,1721611839995,-500.0,0.00013698,2]
[332874600,1721611840005,-500.0,0.00013698,2]
[332874601,1721611840015,-500.0,0.00013698,2]
[332874602,1721611840024,-500.0,0.00013698,2]
[332874603,1721611840033,-500.0,0.00013698,2]
[332874604,1721611840044,-500.0,0.00013698,2]
[332874605,1721611840054,-500.0,0.00013698,2]
[332874606,1721611840064,-500.0,0.00013698,2]
[332874607,1721611840073,-500.0,0.00013698,2]
[332874608,1721611840083,-500.0,0.00013698,2]
[332874609,1721611840092,-203.39,0.00013698,2]
[332874610,1721611840102,-500.0,0.00013698,2]
[332874611,1721611840111,-477.67462171,0.00013698,2]
[332874612,1721611840120,-500.0,0.00013698,2]
[332874613,1721611840129,-500.0,0.00013698,2]
[332874614,1721611840140,-1252.06,0.00013698,2]
[332874615,1721611840149,-500.0,0.00013698,2]
[332874616,1721611840158,-500.0,0.00013698,2]
[332874617,1721611840168,-500.0,0.00013698,2]
[332874618,1721611840178,-500.0,0.00013698,2]
[332874619,1721611840187,-500.0,0.00013698,2]
[332874620,1721611840198,-500.0,0.00013698,2]
[332874621,1721611840207,-500.0,0.00013698,2]
[332874622,1721611840216,-500.0,0.00013698,2]
[332874623,1721611840225,-500.0,0.00013698,2]
[332874624,1721611840235,-500.0,0.00013698,2]
[332874625,1721611840244,-500.0,0.00013698,2]
[332874626,1721611840254,-175.72,0.00013698,2]
[332874627,1721611840263,-500.0,0.00013698,2]
[332874628,1721611840272,-500.0,0.00013698,2]
[332874629,1721611840282,-500.0,0.00013698,2]
[332874630,1721611840291,-500.0,0.00013698,2]
[332874631,1721611840300,-500.0,0.00013698,2]
[332874632,1721611840309,-500.0,0.00013698,2]
[332874633,1721611840318,-500.0,0.00013698,2]
[332874634,1721611840327,-500.0,0.00013698,2]
[332874635,1721611840337,-500.0,0.00013698,2]
[332874636,1721611840346,-500.0,0.00013698,2]
[332874637,1721611840355,-500.0,0.00013698,2]
[332874638,1721611840366,-500.0,0.00013698,2]
[332874639,1721611840375,-500.0,0.00013698,2]
[332874640,1721611840384,-500.0,0.00013698,2]
[332874641,1721611840393,-500.0,0.00013698,2]
[332874642,1721611840403,-336.16,0.00013698,2]
[332874643,1721611840412,-500.0,0.00013698,2]
[332874644,1721611840421,-216.84739977,0.00013698,2]
[332874645,1721611840432,-500.0,0.00013698,2]
[332874646,1721611840442,-451.93,0.00013698,2]
[332874647,1721611840454,-605.26520352,0.00013698,2]
[332874648,1721611840463,-177.28653709,0.00013698,2]
[332874649,1721611840473,-502.36211925,0.00013698,2]
[332874650,1721611840482,-500.0,0.00013698,2]
[332874651,1721611840493,-808.67,0.00013698,2]